[Event "Titled Tuesday Blitz May 03 Early 2022"]
[White "Kozak, Adam"]
[Black "Cherniaiev, Tykhon"]
[WhiteFideId "753246"]
[BlackFideId "14182360"]
[WhiteElo "2459"]
[BlackElo "2289"]
[Result "1-0"]
[Round "03"]
[TimeControl "180+1"]
[Date "2022.05.03"]
[WhiteClock "0:00:03"]
[BlackClock "0:00:02"]

1. Nf3 {[%clk 0:02:57]}  Nf6 {[%clk 0:02:59]} 2. c4 {[%clk 0:02:52]}  e6 {[%clk 0:02:59]} 3. b3 {[%clk 0:02:51]}  d5 {[%clk 0:02:59]} 4. Bb2 {[%clk 0:02:51]}  Be7 {[%clk 0:02:59]} 5. g3 {[%clk 0:02:51]}  O-O {[%clk 0:02:59]} 6. Bg2 {[%clk 0:02:52]}  c6 {[%clk 0:02:59]} 7. O-O {[%clk 0:02:51]}  Nbd7 {[%clk 0:02:56]} 8. d4 {[%clk 0:02:50]}  b6 {[%clk 0:02:55]} 9. Nbd2 {[%clk 0:02:49]}  Bb7 {[%clk 0:02:52]} 10. Qc2 {[%clk 0:02:50]}  Rc8 {[%clk 0:02:50]} 11. Rfd1 {[%clk 0:02:50]}  c5 {[%clk 0:02:50]} 12. dxc5 {[%clk 0:02:50]}  Nxc5 {[%clk 0:02:48]} 13. Rac1 {[%clk 0:02:44]}  Nce4 {[%clk 0:02:47]} 14. Nxe4 {[%clk 0:02:41]}  Nxe4 {[%clk 0:02:48]} 15. Qb1 {[%clk 0:02:38]}  Bc5 {[%clk 0:02:46]} 16. e3 {[%clk 0:02:16]}  Qe7 {[%clk 0:02:45]} 17. Ne5 {[%clk 0:02:15]}  Rfd8 {[%clk 0:02:42]} 18. cxd5 {[%clk 0:02:14]}  exd5 {[%clk 0:02:41]} 19. Nd3 {[%clk 0:02:14]}  Bd6 {[%clk 0:02:16]} 20. Rxc8 {[%clk 0:02:14]}  Rxc8 {[%clk 0:02:15]} 21. Rc1 {[%clk 0:02:11]}  Rd8 {[%clk 0:01:38]} 22. Bd4 {[%clk 0:02:03]}  Ba3 {[%clk 0:01:37]} 23. Rc2 {[%clk 0:02:01]}  Ba6 {[%clk 0:01:37]} 24. Nf4 {[%clk 0:01:57]}  Bc5 {[%clk 0:01:07]} 25. Qb2 {[%clk 0:01:48]}  Bb7 {[%clk 0:01:02]} 26. Bxg7 {[%clk 0:01:28]}  Nxf2 {[%clk 0:00:57]} 27. Rxc5 {[%clk 0:01:02]}  Nd1 {[%clk 0:00:35]} 28. Qe2 {[%clk 0:00:03]}  Qxc5 {[%clk 0:00:34]} 29. Bd4 {[%clk 0:00:02]}  Qc1 {[%clk 0:00:32]} 30. Qg4+ {[%clk 0:00:02]}  Kf8 {[%clk 0:00:31]} 31. Qg7+ {[%clk 0:00:02]}  Ke8 {[%clk 0:00:29]} 32. Qg8+ {[%clk 0:00:02]}  Kd7 {[%clk 0:00:29]} 33. Bh3+ {[%clk 0:00:02]}  Kc6 {[%clk 0:00:26]} 34. Qxd8 {[%clk 0:00:01]}  Nxe3+ {[%clk 0:00:13]} 35. Kf2 {[%clk 0:00:02]}  Nd1+ {[%clk 0:00:10]} 36. Kf3 {[%clk 0:00:02]}  Kb5 {[%clk 0:00:07]} 37. Bd7+ {[%clk 0:00:02]}  Ka6 {[%clk 0:00:07]} 38. a4 {[%clk 0:00:01]}  Qc2 {[%clk 0:00:06]} 39. Bb5+ {[%clk 0:00:02]}  Ka5 {[%clk 0:00:06]} 40. Qd6 {[%clk 0:00:02]}  Qe4+ {[%clk 0:00:07]} 41. Kg4 {[%clk 0:00:03]}  Bc8+ {[%clk 0:00:06]} 42. Kh4 {[%clk 0:00:02]}  Qxd4 {[%clk 0:00:04]} 43. Qxd5 {[%clk 0:00:03]}  Qf6+ {[%clk 0:00:04]} 44. Kh5 {[%clk 0:00:02]}  Qc3 {[%clk 0:00:01]} 45. b4+ {[%clk 0:00:02]}  Qxb4 {[%clk 0:00:01]} 46. Qxf7 {[%clk 0:00:02]}  Bb7 {[%clk 0:00:02]} 47. Qxb7 {[%clk 0:00:03]}  Ne3 {[%clk 0:00:02]} 48. Qxa7# {[%clk 0:00:03]} 1-0


[Site "https://www.chess.com"]

[Event "Titled Tuesday Blitz May 03 Early 2022"]
[White "Kozin, Yuri"]
[Black "Suarez Uriel, Adrian"]
[WhiteFideId "4129920"]
[BlackFideId "22230874"]
[WhiteElo "2599"]
[BlackElo "2316"]
[Result "0-1"]
[Round "03"]
[TimeControl "180+1"]
[Date "2022.05.03"]
[WhiteClock "0:01:50"]
[BlackClock "0:02:35"]

1. e4 {[%clk 0:03:00]}  c5 {[%clk 0:03:00]} 2. Nf3 {[%clk 0:03:00]}  Nc6 {[%clk 0:03:00]} 3. d4 {[%clk 0:03:01]}  cxd4 {[%clk 0:03:01]} 4. Nxd4 {[%clk 0:03:01]}  g6 {[%clk 0:03:02]} 5. Nc3 {[%clk 0:03:01]}  Bg7 {[%clk 0:03:02]} 6. Be3 {[%clk 0:03:02]}  Nf6 {[%clk 0:03:03]} 7. Bc4 {[%clk 0:03:02]}  O-O {[%clk 0:03:03]} 8. Bb3 {[%clk 0:03:03]}  Re8 {[%clk 0:03:04]} 9. h3 {[%clk 0:03:03]}  e6 {[%clk 0:02:58]} 10. O-O {[%clk 0:03:02]}  d5 {[%clk 0:02:58]} 11. exd5 {[%clk 0:03:03]}  Nxd5 {[%clk 0:02:59]} 12. Nxd5 {[%clk 0:03:03]}  exd5 {[%clk 0:03:00]} 13. c3 {[%clk 0:02:59]}  Ne5 {[%clk 0:02:59]} 14. Nf3 {[%clk 0:02:54]}  Nc4 {[%clk 0:02:57]} 15. Bxc4 {[%clk 0:02:51]}  dxc4 {[%clk 0:02:57]} 16. Bd4 {[%clk 0:02:52]}  Bf5 {[%clk 0:02:53]} 17. Qa4 {[%clk 0:02:45]}  Be4 {[%clk 0:02:47]} 18. Bxg7 {[%clk 0:02:13]}  Bxf3 {[%clk 0:02:37]} 19. Bh6 {[%clk 0:02:05]}  Qh4 {[%clk 0:02:37]} 20. Be3 {[%clk 0:01:57]}  Bc6 {[%clk 0:02:35]} 21. Qa5 {[%clk 0:01:50]}  Qe4 {[%clk 0:02:35]} 0-1


[Site "https://www.chess.com"]

[Event "Titled Tuesday Blitz May 03 Early 2022"]
[White "Lopez, Henry"]
[Black "Coto Mederos, Michel"]
[WhiteFideId "5203830"]
[BlackFideId "3508528"]
[WhiteElo "2177"]
[BlackElo "2427"]
[Result "0-1"]
[Round "03"]
[TimeControl "180+1"]
[Date "2022.05.03"]
[WhiteClock "0:00:01"]
[BlackClock "0:00:07"]

1. d4 {[%clk 0:03:00]}  d5 {[%clk 0:02:59]} 2. Nf3 {[%clk 0:03:00]}  Nf6 {[%clk 0:02:59]} 3. c4 {[%clk 0:03:00]}  e6 {[%clk 0:02:58]} 4. Nc3 {[%clk 0:02:59]}  Be7 {[%clk 0:02:59]} 5. Bg5 {[%clk 0:02:58]}  h6 {[%clk 0:02:58]} 6. Bh4 {[%clk 0:02:57]}  O-O {[%clk 0:02:58]} 7. e3 {[%clk 0:02:57]}  Ne4 {[%clk 0:02:59]} 8. Bxe7 {[%clk 0:02:56]}  Qxe7 {[%clk 0:02:59]} 9. Qc2 {[%clk 0:02:55]}  Nxc3 {[%clk 0:02:55]} 10. bxc3 {[%clk 0:02:54]}  c6 {[%clk 0:02:51]} 11. Bd3 {[%clk 0:02:52]}  Nd7 {[%clk 0:02:48]} 12. cxd5 {[%clk 0:02:49]}  exd5 {[%clk 0:02:48]} 13. O-O {[%clk 0:02:47]}  Nf6 {[%clk 0:02:37]} 14. a4 {[%clk 0:02:44]}  Be6 {[%clk 0:02:30]} 15. Rfe1 {[%clk 0:02:39]}  Rac8 {[%clk 0:02:26]} 16. Ne5 {[%clk 0:02:23]}  Nd7 {[%clk 0:02:16]} 17. f4 {[%clk 0:02:19]}  Nxe5 {[%clk 0:02:09]} 18. dxe5 {[%clk 0:02:15]}  Bd7 {[%clk 0:02:06]} 19. a5 {[%clk 0:02:08]}  f6 {[%clk 0:01:53]} 20. e4 {[%clk 0:01:51]}  fxe5 {[%clk 0:01:44]} 21. exd5 {[%clk 0:01:40]}  Rxf4 {[%clk 0:01:36]} 22. Qe2 {[%clk 0:01:25]}  Rcf8 {[%clk 0:01:04]} 23. Qxe5 {[%clk 0:01:17]}  Qc5+ {[%clk 0:01:03]} 24. Qe3 {[%clk 0:01:09]}  Qxe3+ {[%clk 0:00:54]} 25. Rxe3 {[%clk 0:01:08]}  cxd5 {[%clk 0:00:55]} 26. h3 {[%clk 0:01:00]}  d4 {[%clk 0:00:48]} 27. cxd4 {[%clk 0:00:46]}  Rxd4 {[%clk 0:00:49]} 28. Rc1 {[%clk 0:00:46]}  Bc6 {[%clk 0:00:47]} 29. a6 {[%clk 0:00:42]}  Rd7 {[%clk 0:00:37]} 30. Rc5 {[%clk 0:00:29]}  Rfd8 {[%clk 0:00:33]} 31. Bc4+ {[%clk 0:00:23]}  Kh8 {[%clk 0:00:33]} 32. axb7 {[%clk 0:00:21]}  Bxb7 {[%clk 0:00:34]} 33. Rce5 {[%clk 0:00:19]}  Rd2 {[%clk 0:00:27]} 34. Be2 {[%clk 0:00:16]}  Rc8 {[%clk 0:00:23]} 35. Re7 {[%clk 0:00:16]}  Rb2 {[%clk 0:00:22]} 36. Re8+ {[%clk 0:00:14]}  Rxe8 {[%clk 0:00:21]} 37. Rxe8+ {[%clk 0:00:13]}  Kh7 {[%clk 0:00:22]} 38. h4 {[%clk 0:00:13]}  Kg6 {[%clk 0:00:21]} 39. Re3 {[%clk 0:00:12]}  Kf6 {[%clk 0:00:20]} 40. g3 {[%clk 0:00:12]}  a5 {[%clk 0:00:20]} 41. Kf1 {[%clk 0:00:11]}  a4 {[%clk 0:00:19]} 42. Rc3 {[%clk 0:00:10]}  Bd5 {[%clk 0:00:16]} 43. Rc5 {[%clk 0:00:09]}  Bb3 {[%clk 0:00:14]} 44. Ra5 {[%clk 0:00:09]}  Rd2 {[%clk 0:00:12]} 45. Ke1 {[%clk 0:00:09]}  Rc2 {[%clk 0:00:10]} 46. Bb5 {[%clk 0:00:06]}  Ra2 {[%clk 0:00:06]} 47. Be2 {[%clk 0:00:04]}  a3 {[%clk 0:00:06]} 48. Bd3 {[%clk 0:00:01]}  Ra1+ {[%clk 0:00:07]} 49. Kd2 {[%clk 0:00:01]}  a2 {[%clk 0:00:08]} 50. Kc3 {[%clk 0:00:01]}  Bf7 {[%clk 0:00:07]} 0-1


[Site "https://www.chess.com"]

[Event "Titled Tuesday Blitz May 03 Early 2022"]
[White "Manon, Reja Neer"]
[Black "Turutin, Alexander"]
[WhiteFideId "10224009"]
[BlackFideId "4180623"]
[WhiteElo "1911"]
[BlackElo "2402"]
[Result "0-1"]
[Round "03"]
[TimeControl "180+1"]
[Date "2022.05.03"]
[WhiteClock "0:00:13"]
[BlackClock "0:00:10"]

1. e4 {[%clk 0:03:00]}  c6 {[%clk 0:02:58]} 2. d4 {[%clk 0:03:00]}  d5 {[%clk 0:02:59]} 3. Nc3 {[%clk 0:02:59]}  dxe4 {[%clk 0:02:58]} 4. Nxe4 {[%clk 0:03:00]}  Bf5 {[%clk 0:02:56]} 5. Ng3 {[%clk 0:02:59]}  Bg6 {[%clk 0:02:56]} 6. h4 {[%clk 0:03:00]}  h6 {[%clk 0:02:56]} 7. h5 {[%clk 0:03:00]}  Bh7 {[%clk 0:02:57]} 8. Nf3 {[%clk 0:02:59]}  Nf6 {[%clk 0:02:56]} 9. Bd3 {[%clk 0:02:59]}  Bxd3 {[%clk 0:02:55]} 10. Qxd3 {[%clk 0:03:00]}  Nbd7 {[%clk 0:02:55]} 11. c4 {[%clk 0:02:59]}  e6 {[%clk 0:02:54]} 12. Bd2 {[%clk 0:02:58]}  Bd6 {[%clk 0:02:53]} 13. O-O-O {[%clk 0:02:48]}  Qc7 {[%clk 0:02:48]} 14. Ne2 {[%clk 0:02:35]}  Ng4 {[%clk 0:02:34]} 15. Rdf1 {[%clk 0:02:19]}  c5 {[%clk 0:02:24]} 16. Rh4 {[%clk 0:02:08]}  f5 {[%clk 0:01:51]} 17. d5 {[%clk 0:01:49]}  Nge5 {[%clk 0:01:25]} 18. Qe3 {[%clk 0:01:39]}  exd5 {[%clk 0:01:11]} 19. Nxe5 {[%clk 0:00:56]}  Nxe5 {[%clk 0:01:11]} 20. cxd5 {[%clk 0:00:45]}  O-O-O {[%clk 0:00:59]} 21. Nf4 {[%clk 0:00:44]}  Nc4 {[%clk 0:00:30]} 22. Qd3 {[%clk 0:00:18]}  Nxd2 {[%clk 0:00:30]} 23. Ne6 {[%clk 0:00:18]}  Qa5 {[%clk 0:00:25]} 24. Nxd8 {[%clk 0:00:18]}  Nxf1 {[%clk 0:00:22]} 25. Nf7 {[%clk 0:00:15]}  Be7 {[%clk 0:00:14]} 26. Qxf1 {[%clk 0:00:14]}  Bxh4 {[%clk 0:00:12]} 27. Nd6+ {[%clk 0:00:13]}  Kb8 {[%clk 0:00:11]} 28. Nxf5 {[%clk 0:00:14]}  Bg5+ {[%clk 0:00:11]} 29. f4 {[%clk 0:00:14]}  Bf6 {[%clk 0:00:11]} 30. Qe2 {[%clk 0:00:13]}  Rd8 {[%clk 0:00:10]} 31. d6 {[%clk 0:00:13]}  Qxa2 {[%clk 0:00:10]} 0-1


[Site "https://www.chess.com"]

[Event "Titled Tuesday Blitz May 03 Early 2022"]
[White "Matveeva, Olga"]
[Black "Nguyen, Hong Anh"]
[WhiteFideId "24107018"]
[BlackFideId "12406732"]
[WhiteElo "2083"]
[BlackElo "2016"]
[Result "1-0"]
[Round "03"]
[TimeControl "180+1"]
[Date "2022.05.03"]
[WhiteClock "0:01:37"]
[BlackClock "0:00:10"]

1. d4 {[%clk 0:03:00]}  Nf6 {[%clk 0:02:59]} 2. c4 {[%clk 0:03:00]}  g6 {[%clk 0:02:59]} 3. g3 {[%clk 0:03:00]}  Bg7 {[%clk 0:02:59]} 4. Bg2 {[%clk 0:03:01]}  d5 {[%clk 0:02:59]} 5. cxd5 {[%clk 0:02:59]}  Nxd5 {[%clk 0:03:00]} 6. Nf3 {[%clk 0:02:59]}  O-O {[%clk 0:02:59]} 7. O-O {[%clk 0:02:59]}  Nc6 {[%clk 0:02:59]} 8. Nc3 {[%clk 0:02:59]}  Nb6 {[%clk 0:02:58]} 9. e3 {[%clk 0:02:59]}  Re8 {[%clk 0:02:57]} 10. Re1 {[%clk 0:02:59]}  e5 {[%clk 0:02:57]} 11. d5 {[%clk 0:02:58]}  Na5 {[%clk 0:02:57]} 12. e4 {[%clk 0:02:58]}  c6 {[%clk 0:02:57]} 13. b3 {[%clk 0:02:59]}  cxd5 {[%clk 0:02:56]} 14. exd5 {[%clk 0:02:59]}  e4 {[%clk 0:02:53]} 15. Nxe4 {[%clk 0:02:59]}  Bxa1 {[%clk 0:02:53]} 16. Bg5 {[%clk 0:02:58]}  f6 {[%clk 0:02:04]} 17. Bxf6 {[%clk 0:02:56]}  Bxf6 {[%clk 0:02:03]} 18. Nxf6+ {[%clk 0:02:55]}  Qxf6 {[%clk 0:02:03]} 19. Rxe8+ {[%clk 0:02:55]}  Kf7 {[%clk 0:02:00]} 20. Qe1 {[%clk 0:02:47]}  Bg4 {[%clk 0:01:31]} 21. Rxa8 {[%clk 0:02:31]}  Nxa8 {[%clk 0:01:30]} 22. Ne5+ {[%clk 0:02:30]}  Kf8 {[%clk 0:00:59]} 23. Nxg4 {[%clk 0:02:28]}  Qd8 {[%clk 0:00:48]} 24. d6 {[%clk 0:02:14]}  Nc6 {[%clk 0:00:26]} 25. Qe6 {[%clk 0:02:02]}  Nb6 {[%clk 0:00:19]} 26. Nh6 {[%clk 0:01:56]}  Kg7 {[%clk 0:00:15]} 27. Bxc6 {[%clk 0:01:38]}  bxc6 {[%clk 0:00:10]} 28. Qe7+ {[%clk 0:01:37]} 1-0


[Site "https://www.chess.com"]

[Event "Titled Tuesday Blitz May 03 Early 2022"]
[White "Melikyan, Gnel"]
[Black "Shohat, Yotam"]
[WhiteFideId "54109990"]
[BlackFideId "2813955"]
[WhiteElo "1772"]
[BlackElo "2119"]
[Result "1-0"]
[Round "03"]
[TimeControl "180+1"]
[Date "2022.05.03"]
[WhiteClock "0:00:48"]
[BlackClock "0:00:04"]

1. e4 {[%clk 0:02:59]}  c5 {[%clk 0:02:56]} 2. Nf3 {[%clk 0:02:58]}  Nc6 {[%clk 0:02:55]} 3. Bb5 {[%clk 0:02:57]}  Nf6 {[%clk 0:02:54]} 4. d3 {[%clk 0:02:57]}  g6 {[%clk 0:02:52]} 5. O-O {[%clk 0:02:56]}  Bg7 {[%clk 0:02:52]} 6. Nc3 {[%clk 0:02:55]}  O-O {[%clk 0:02:51]} 7. h3 {[%clk 0:02:52]}  d6 {[%clk 0:02:49]} 8. Bxc6 {[%clk 0:02:50]}  bxc6 {[%clk 0:02:50]} 9. e5 {[%clk 0:02:50]}  Nd7 {[%clk 0:02:41]} 10. exd6 {[%clk 0:02:41]}  exd6 {[%clk 0:02:42]} 11. Ne4 {[%clk 0:02:39]}  d5 {[%clk 0:02:15]} 12. Ng3 {[%clk 0:02:28]}  Rb8 {[%clk 0:02:07]} 13. Rb1 {[%clk 0:02:23]}  Qa5 {[%clk 0:01:57]} 14. a3 {[%clk 0:02:21]}  Ba6 {[%clk 0:01:49]} 15. Re1 {[%clk 0:02:13]}  Rfe8 {[%clk 0:01:35]} 16. Rxe8+ {[%clk 0:02:06]}  Rxe8 {[%clk 0:01:36]} 17. Bd2 {[%clk 0:02:05]}  Qa4 {[%clk 0:01:25]} 18. Nf1 {[%clk 0:01:49]}  Rb8 {[%clk 0:01:19]} 19. Qc1 {[%clk 0:01:40]}  c4 {[%clk 0:01:07]} 20. dxc4 {[%clk 0:01:38]}  Qxc4 {[%clk 0:01:03]} 21. Ne3 {[%clk 0:01:37]}  Qe2 {[%clk 0:00:43]} 22. b3 {[%clk 0:01:21]}  h5 {[%clk 0:00:34]} 23. a4 {[%clk 0:01:18]}  d4 {[%clk 0:00:24]} 24. Nf1 {[%clk 0:01:13]}  d3 {[%clk 0:00:24]} 25. c4 {[%clk 0:01:00]}  Nc5 {[%clk 0:00:12]} 26. Qa3 {[%clk 0:00:57]}  Ne4 {[%clk 0:00:09]} 27. Re1 {[%clk 0:00:57]}  Qxf2+ {[%clk 0:00:09]} 28. Kh1 {[%clk 0:00:54]}  Bf8 {[%clk 0:00:09]} 29. Qb2 {[%clk 0:00:52]}  Nxd2 {[%clk 0:00:04]} 30. N1xd2 {[%clk 0:00:52]}  Qg3 {[%clk 0:00:04]} 31. Qc3 {[%clk 0:00:50]}  Rd8 {[%clk 0:00:04]} 32. Re3 {[%clk 0:00:49]}  Bg7 {[%clk 0:00:04]} 33. Qa5 {[%clk 0:00:48]}  Qf4 {[%clk 0:00:04]} 34. Qxd8+ {[%clk 0:00:47]}  Kh7 {[%clk 0:00:04]} 35. Qxd3 {[%clk 0:00:48]} 1-0


[Site "https://www.chess.com"]

[Event "Titled Tuesday Blitz May 03 Early 2022"]
[White "Meshkovs, Nikita"]
[Black "Grischuk, Alexander"]
[WhiteFideId "11602740"]
[BlackFideId "4126025"]
[WhiteElo "2506"]
[BlackElo "2762"]
[Result "1/2-1/2"]
[Round "03"]
[TimeControl "180+1"]
[Date "2022.05.03"]
[WhiteClock "0:00:05"]
[BlackClock "0:01:05"]

1. d4 {[%clk 0:03:00]}  e6 {[%clk 0:02:59]} 2. c4 {[%clk 0:02:58]}  b6 {[%clk 0:02:59]} 3. Nf3 {[%clk 0:02:55]}  Bb7 {[%clk 0:02:59]} 4. g3 {[%clk 0:02:55]}  Bb4+ {[%clk 0:02:59]} 5. Bd2 {[%clk 0:02:54]}  Bxf3 {[%clk 0:02:59]} 6. exf3 {[%clk 0:02:54]}  Bxd2+ {[%clk 0:03:00]} 7. Qxd2 {[%clk 0:02:44]}  Ne7 {[%clk 0:03:00]} 8. Nc3 {[%clk 0:02:33]}  O-O {[%clk 0:02:56]} 9. f4 {[%clk 0:02:22]}  d5 {[%clk 0:02:52]} 10. Bg2 {[%clk 0:02:18]}  c6 {[%clk 0:02:52]} 11. b3 {[%clk 0:02:05]}  Nd7 {[%clk 0:02:51]} 12. O-O {[%clk 0:02:03]}  Nf6 {[%clk 0:02:51]} 13. a4 {[%clk 0:01:52]}  a5 {[%clk 0:02:46]} 14. Rac1 {[%clk 0:00:51]}  Qd7 {[%clk 0:02:41]} 15. cxd5 {[%clk 0:00:46]}  cxd5 {[%clk 0:02:42]} 16. Nb5 {[%clk 0:00:39]}  Rfc8 {[%clk 0:02:43]} 17. Rxc8+ {[%clk 0:00:38]}  Rxc8 {[%clk 0:02:44]} 18. Rc1 {[%clk 0:00:39]}  h6 {[%clk 0:02:36]} 19. Rc3 {[%clk 0:00:33]}  Rxc3 {[%clk 0:02:31]} 20. Qxc3 {[%clk 0:00:33]}  Nc6 {[%clk 0:02:32]} 21. f3 {[%clk 0:00:30]}  Ne8 {[%clk 0:02:29]} 22. Bf1 {[%clk 0:00:25]}  g6 {[%clk 0:02:28]} 23. Na3 {[%clk 0:00:23]}  Nd6 {[%clk 0:02:24]} 24. Bb5 {[%clk 0:00:22]}  Nxb5 {[%clk 0:02:24]} 25. Nxb5 {[%clk 0:00:23]}  Kg7 {[%clk 0:02:25]} 26. Kg2 {[%clk 0:00:23]}  Nb4 {[%clk 0:02:19]} 27. Qe3 {[%clk 0:00:20]}  Nc6 {[%clk 0:02:16]} 28. h4 {[%clk 0:00:20]}  h5 {[%clk 0:02:12]} 29. Qe1 {[%clk 0:00:20]}  Kg8 {[%clk 0:02:10]} 30. Qc3 {[%clk 0:00:20]}  Nb4 {[%clk 0:02:08]} 31. Kf2 {[%clk 0:00:19]}  Kf8 {[%clk 0:01:54]} 32. Ke2 {[%clk 0:00:16]}  Ke7 {[%clk 0:01:54]} 33. Kd2 {[%clk 0:00:16]}  Nc6 {[%clk 0:01:51]} 34. Qe3 {[%clk 0:00:16]}  Kd8 {[%clk 0:01:51]} 35. Qe1 {[%clk 0:00:14]}  Kc8 {[%clk 0:01:51]} 36. Qc1 {[%clk 0:00:14]}  Kb7 {[%clk 0:01:51]} 37. Qc3 {[%clk 0:00:14]}  Qe7 {[%clk 0:01:51]} 38. Kc2 {[%clk 0:00:09]}  f6 {[%clk 0:01:45]} 39. Kb2 {[%clk 0:00:07]}  Qd7 {[%clk 0:01:45]} 40. Qe1 {[%clk 0:00:06]}  Nb4 {[%clk 0:01:45]} 41. Qc3 {[%clk 0:00:06]}  Na6 {[%clk 0:01:42]} 42. Qe3 {[%clk 0:00:05]}  Nc7 {[%clk 0:01:42]} 43. Nxc7 {[%clk 0:00:05]}  Kxc7 {[%clk 0:01:43]} 44. Qc3+ {[%clk 0:00:06]}  Kb7 {[%clk 0:01:44]} 45. Qd3 {[%clk 0:00:06]}  Qe8 {[%clk 0:01:38]} 46. Qe2 {[%clk 0:00:05]}  Qe7 {[%clk 0:01:38]} 47. Qd3 {[%clk 0:00:05]}  Qb4 {[%clk 0:01:38]} 48. Kc2 {[%clk 0:00:05]}  f5 {[%clk 0:01:36]} 49. Qe3 {[%clk 0:00:06]}  Qd6 {[%clk 0:01:35]} 50. Qe5 {[%clk 0:00:06]}  Qc6+ {[%clk 0:01:32]} 51. Kd2 {[%clk 0:00:07]}  b5 {[%clk 0:01:30]} 52. axb5 {[%clk 0:00:07]}  Qxb5 {[%clk 0:01:29]} 53. Qxe6 {[%clk 0:00:07]}  Qxb3 {[%clk 0:01:29]} 54. Qd7+ {[%clk 0:00:07]}  Kb6 {[%clk 0:01:28]} 55. Qd6+ {[%clk 0:00:06]}  Kb5 {[%clk 0:01:27]} 56. Qxg6 {[%clk 0:00:07]}  a4 {[%clk 0:01:25]} 57. Qxf5 {[%clk 0:00:06]}  Kc4 {[%clk 0:01:18]} 58. Qc2+ {[%clk 0:00:05]}  Qxc2+ {[%clk 0:01:02]} 59. Kxc2 {[%clk 0:00:05]}  Kxd4 {[%clk 0:01:03]} 60. g4 {[%clk 0:00:06]}  hxg4 {[%clk 0:01:02]} 61. fxg4 {[%clk 0:00:07]}  Ke3 {[%clk 0:01:03]} 62. h5 {[%clk 0:00:07]}  d4 {[%clk 0:01:03]} 63. h6 {[%clk 0:00:07]}  Ke2 {[%clk 0:01:03]} 64. h7 {[%clk 0:00:07]}  d3+ {[%clk 0:01:04]} 65. Kb2 {[%clk 0:00:06]}  d2 {[%clk 0:01:05]} 66. h8=Q {[%clk 0:00:06]}  d1=Q {[%clk 0:01:05]} 67. Qe5+ {[%clk 0:00:06]}  Kf3 {[%clk 0:01:04]} 68. g5 {[%clk 0:00:05]}  Qb3+ {[%clk 0:01:04]} 69. Ka1 {[%clk 0:00:05]}  Qa3+ {[%clk 0:01:04]} 70. Kb1 {[%clk 0:00:05]}  Qd3+ {[%clk 0:01:03]} 71. Kb2 {[%clk 0:00:04]}  Qb3+ {[%clk 0:01:03]} 72. Ka1 {[%clk 0:00:05]}  Qa3+ {[%clk 0:01:04]} 73. Kb1 {[%clk 0:00:05]}  Qd3+ {[%clk 0:01:04]} 74. Kb2 {[%clk 0:00:05]}  Qb3+ {[%clk 0:01:05]} 1/2-1/2


[Site "https://www.chess.com"]

[Event "Titled Tuesday Blitz May 03 Early 2022"]
[White "Mikhailovsky, Vladimir"]
[Black "Zhao, Jun"]
[WhiteFideId "34105414"]
[BlackFideId "8602522"]
[WhiteElo "2349"]
[BlackElo "2547"]
[Result "1/2-1/2"]
[Round "03"]
[TimeControl "180+1"]
[Date "2022.05.03"]
[WhiteClock "0:00:44"]
[BlackClock "0:00:14"]

1. e4 {[%clk 0:03:00]}  e5 {[%clk 0:02:57]} 2. Nf3 {[%clk 0:02:56]}  Nc6 {[%clk 0:02:57]} 3. Nc3 {[%clk 0:02:56]}  Nf6 {[%clk 0:02:56]} 4. d4 {[%clk 0:02:56]}  exd4 {[%clk 0:02:56]} 5. Nxd4 {[%clk 0:02:57]}  Bb4 {[%clk 0:02:56]} 6. Nxc6 {[%clk 0:02:58]}  bxc6 {[%clk 0:02:57]} 7. Bd3 {[%clk 0:02:58]}  O-O {[%clk 0:02:54]} 8. O-O {[%clk 0:02:58]}  d5 {[%clk 0:02:53]} 9. exd5 {[%clk 0:02:59]}  cxd5 {[%clk 0:02:53]} 10. h3 {[%clk 0:02:58]}  c6 {[%clk 0:02:48]} 11. Qf3 {[%clk 0:02:58]}  Bd6 {[%clk 0:02:46]} 12. Re1 {[%clk 0:02:51]}  Rb8 {[%clk 0:02:43]} 13. b3 {[%clk 0:02:48]}  Be6 {[%clk 0:02:31]} 14. Bf4 {[%clk 0:02:47]}  Rb4 {[%clk 0:02:28]} 15. Ne2 {[%clk 0:02:46]}  h6 {[%clk 0:02:20]} 16. c3 {[%clk 0:02:46]}  Rb7 {[%clk 0:02:19]} 17. Rad1 {[%clk 0:02:46]}  Re8 {[%clk 0:02:12]} 18. c4 {[%clk 0:02:35]}  Bb4 {[%clk 0:02:08]} 19. Rf1 {[%clk 0:02:10]}  Bc5 {[%clk 0:01:41]} 20. Nc3 {[%clk 0:02:02]}  Rd7 {[%clk 0:01:39]} 21. Na4 {[%clk 0:02:01]}  Bf8 {[%clk 0:01:37]} 22. Rfe1 {[%clk 0:01:55]}  dxc4 {[%clk 0:01:29]} 23. Bxc4 {[%clk 0:01:28]}  Bxc4 {[%clk 0:01:29]} 24. bxc4 {[%clk 0:01:28]}  Rxe1+ {[%clk 0:01:23]} 25. Rxe1 {[%clk 0:01:27]}  Qa5 {[%clk 0:01:24]} 26. Nc3 {[%clk 0:01:26]}  Qf5 {[%clk 0:01:17]} 27. Re5 {[%clk 0:01:16]}  Qd3 {[%clk 0:01:00]} 28. Qxd3 {[%clk 0:01:07]}  Rxd3 {[%clk 0:01:01]} 29. Re3 {[%clk 0:01:07]}  Rd4 {[%clk 0:00:58]} 30. Bb8 {[%clk 0:01:02]}  Rxc4 {[%clk 0:00:57]} 31. Bxa7 {[%clk 0:01:00]}  Bb4 {[%clk 0:00:49]} 32. Ne2 {[%clk 0:01:00]}  Nd5 {[%clk 0:00:46]} 33. Rb3 {[%clk 0:00:55]}  Rc2 {[%clk 0:00:44]} 34. Nd4 {[%clk 0:00:55]}  Rxa2 {[%clk 0:00:31]} 35. Nxc6 {[%clk 0:00:53]}  Ra1+ {[%clk 0:00:18]} 36. Kh2 {[%clk 0:00:53]}  Bd6+ {[%clk 0:00:19]} 37. g3 {[%clk 0:00:54]}  Ra6 {[%clk 0:00:20]} 38. Rd3 {[%clk 0:00:45]}  Rxc6 {[%clk 0:00:14]} 39. Rxd5 {[%clk 0:00:44]} 1/2-1/2


[Site "https://www.chess.com"]

[Event "Titled Tuesday Blitz May 03 Early 2022"]
[White "Mikhnenko, Alexander"]
[Black "Ismayil, Malak"]
[WhiteFideId "34143014"]
[BlackFideId "13412604"]
[WhiteElo "2117"]
[BlackElo "1879"]
[Result "1-0"]
[Round "03"]
[TimeControl "180+1"]
[Date "2022.05.03"]
[WhiteClock "0:02:33"]
[BlackClock "0:01:32"]

1. e4 {[%clk 0:03:00]}  e5 {[%clk 0:02:55]} 2. Nf3 {[%clk 0:02:59]}  Nc6 {[%clk 0:02:56]} 3. Bb5 {[%clk 0:02:58]}  a6 {[%clk 0:02:55]} 4. Ba4 {[%clk 0:02:58]}  Nf6 {[%clk 0:02:54]} 5. O-O {[%clk 0:02:57]}  b5 {[%clk 0:02:55]} 6. Bb3 {[%clk 0:02:56]}  Bc5 {[%clk 0:02:55]} 7. c3 {[%clk 0:02:55]}  O-O {[%clk 0:02:54]} 8. a4 {[%clk 0:02:54]}  Rb8 {[%clk 0:02:53]} 9. d4 {[%clk 0:02:52]}  Bd6 {[%clk 0:02:32]} 10. Bg5 {[%clk 0:02:47]}  h6 {[%clk 0:02:31]} 11. Bh4 {[%clk 0:02:46]}  Qe7 {[%clk 0:02:19]} 12. Nbd2 {[%clk 0:02:43]}  g5 {[%clk 0:01:48]} 13. Nxg5 {[%clk 0:02:41]}  hxg5 {[%clk 0:01:46]} 14. Bxg5 {[%clk 0:02:42]}  exd4 {[%clk 0:01:44]} 15. f4 {[%clk 0:02:36]}  dxc3 {[%clk 0:01:35]} 16. e5 {[%clk 0:02:35]}  Bc5+ {[%clk 0:01:34]} 17. Kh1 {[%clk 0:02:34]}  cxd2 {[%clk 0:01:32]} 18. Bxf6 {[%clk 0:02:33]} 1-0


[Site "https://www.chess.com"]